bitfinex-derivatives/quotes_BTCF0:USTF0_20210105
["timestamp","ask_amount","ask_price","bid_price","bid_amount"]
[1609882204881,1.2715,33898.0,33885.0,4.0218]
[1609882205883,1.0,33898.0,33885.0,4.0218]
[1609882206284,1.0,33898.0,33897.0,0.13632608]
[1609882206685,0.26048608,33899.0,33897.0,1.13632608]
[1609882207785,0.44299703,33901.0,33897.0,1.13632608]
[1609882207987,0.44299703,33901.0,33897.0,4.82082608]
[1609882208588,0.44299703,33901.0,33897.0,3.82082608]
[1609882209390,0.29528716,33906.0,33897.0,3.82082608]
[1609882209790,0.13632608,33910.0,33897.0,3.82082608]
[1609882210292,0.13632608,33903.0,33897.0,3.82082608]
[1609882210492,0.23221608,33903.0,33897.0,3.82082608]
[1609882210699,0.13277174,33898.0,33897.0,3.82082608]
[1609882212697,0.13277174,33898.0,33897.0,4.82082608]
[1609882215001,0.13632608,33909.0,33897.0,4.82082608]
[1609882215201,0.13914,33911.0,33897.0,1.13632608]
[1609882215400,0.13914,33911.0,33906.0,3.8271]
[1609882216003,0.2826,33914.0,33906.0,3.8271]
[1609882216403,0.2826,33914.0,33913.0,0.13632608]
[1609882217706,0.13632608,33924.0,33913.0,0.13632608]
[1609882218308,0.13632608,33924.0,33923.0,0.13632608]
[1609882218708,0.1588885,33914.0,33906.0,3.8271]
[1609882220310,0.1588885,33914.0,33913.0,0.13632608]
[1609882220911,0.1588885,33914.0,33913.0,0.81852608]
[1609882221311,0.13632608,33917.0,33913.0,0.81852608]
[1609882221709,0.13632608,33917.0,33913.0,0.13632608]
[1609882222311,0.13632608,33921.0,33913.0,0.13632608]
[1609882222620,0.13632608,33921.0,33917.0,1.0]
[1609882224311,0.13632608,33921.0,33920.0,0.13632608]
[1609882224712,0.13632608,33921.0,33920.0,1.13632608]
[1609882225614,0.11957,33926.0,33920.0,1.13632608]
[1609882225914,0.2789,33933.0,33920.0,1.13632608]
[1609882226326,0.2789,33933.0,33926.0,0.13632608]
[1609882228421,0.13632608,33927.0,33926.0,0.13632608]
[1609882228620,0.13632608,33927.0,33926.0,1.13632608]
[1609882229220,0.13632608,33927.0,33926.0,0.84115692]
[1609882229621,0.13632608,33927.0,33926.0,1.0]
[1609882231521,0.13632608,33927.0,33922.0,4.4299]
[1609882232421,0.13632608,33923.0,33922.0,4.4299]
[1609882233523,0.13632608,33923.0,33922.0,5.4299]
[1609882238929,0.25130608,33923.0,33922.0,5.4299]
[1609882240231,0.11498,33923.0,33922.0,5.4299]
[1609882240432,0.2789,33933.0,33922.0,5.4299]
[1609882240633,0.13632608,33925.0,33922.0,5.4299]
[1609882240832,0.27521608,33925.0,33922.0,5.4299]
[1609882241034,0.13889,33925.0,33922.0,1.0]
[1609882241236,0.13889,33925.0,33924.0,4.2067]
[1609882241631,0.13889,33925.0,33924.0,10.2067]
[1609882241835,0.10874,33932.0,33924.0,10.2067]
[1609882242635,0.10874,33932.0,33931.0,0.13632608]
[1609882242835,0.13632608,33947.0,33931.0,0.60852608]
[1609882244236,0.13632608,33947.0,33931.0,0.13632608]
[1609882244637,0.2811,33949.0,33940.0,0.13632608]
[1609882246542,0.13632608,33941.0,33940.0,0.13632608]
[1609882247141,0.13632608,33941.0,33940.0,4.38452608]
[1609882247541,0.13632608,33941.0,33940.0,5.38452608]
[1609882248242,0.10335,33942.0,33940.0,5.38452608]
[1609882249543,0.10335,33942.0,33941.0,1.0]
[1609882250044,0.13632608,33948.0,33941.0,1.0]
[1609882250646,0.13632608,33948.0,33947.0,0.13632608]
[1609882250846,0.13632608,33948.0,33947.0,0.73032608]
[1609882251045,0.00374065,33955.0,33947.0,0.73032608]
[1609882251246,0.2754,33961.0,33947.0,0.73032608]
[1609882251847,0.2754,33961.0,33947.0,0.13632608]
[1609882252247,0.2754,33961.0,33957.0,3.391]
[1609882252649,0.13632608,33958.0,33957.0,3.391]
[1609882252848,0.24642608,33958.0,33957.0,3.391]
[1609882254550,0.24642608,33958.0,33921.0,0.13627]
[1609882254750,0.24642608,33958.0,33943.0,3.7871]
[1609882256553,0.1101,33958.0,33947.0,0.13632608]
[1609882257153,0.1101,33958.0,33954.0,4.9228]
[1609882257953,0.2754,33961.0,33954.0,4.9228]
[1609882258554,0.13632608,33955.0,33954.0,4.9228]
[1609882258755,0.13632608,33955.0,33947.0,1.13632608]
[1609882258756,0.28368608,33955.0,33947.0,1.13632608]
[1609882259554,0.28368608,33955.0,33947.0,0.13632608]
[1609882260657,0.13632608,33948.0,33947.0,0.13632608]
[1609882260855,0.25162608,33948.0,33947.0,0.13632608]
[1609882264660,0.25162608,33948.0,33947.0,3.77842608]
[1609882266566,0.1153,33948.0,33947.0,3.77842608]
[1609882266766,0.14736,33955.0,33947.0,3.77842608]
[1609882266968,0.13632608,33960.0,33947.0,3.77842608]
[1609882267467,0.13632608,33960.0,33947.0,0.13632608]
[1609882268568,0.13632608,33960.0,33923.0,0.11806]
[1609882268569,0.13632608,33960.0,33959.0,0.13632608]
[1609882268769,0.13632608,33960.0,33950.0,3.6033]
[1609882268970,0.13632608,33960.0,33923.0,0.11806]
[1609882269169,0.13632608,33960.0,33937.0,4.935]
[1609882269370,0.25893608,33960.0,33937.0,4.935]
[1609882270572,0.12261,33960.0,33953.0,0.13632608]
[1609882271774,0.12261,33960.0,33953.0,0.83382608]
[1609882272575,0.13632608,33954.0,33953.0,0.83382608]
[1609882273978,0.12261,33960.0,33953.0,0.83382608]
[1609882274379,0.12261,33960.0,33953.0,0.13632608]
[1609882274582,1.0,33962.0,33959.0,4.52532608]
[1609882275385,1.0,33962.0,33959.0,0.13632608]
[1609882275582,0.14007822,33973.0,33959.0,0.13632608]
[1609882275784,0.13632608,33973.0,33959.0,4.76092608]
[1609882276583,0.0037478,33980.0,33959.0,4.76092608]
[1609882276584,0.0037478,33980.0,33969.0,0.13632608]
[1609882276784,0.0037478,33980.0,33959.0,4.6246]
[1609882277187,0.1363578,33980.0,33959.0,4.6246]
[1609882277385,0.14545957,33980.0,33959.0,4.6246]
[1609882278188,0.00374782,33979.0,33959.0,4.6246]
[1609882278687,0.00374782,33979.0,33963.0,0.13632608]
[1609882278887,0.14545959,33980.0,33963.0,0.13632608]
[1609882279087,0.14545959,33980.0,33959.0,4.6246]
[1609882279487,0.00374786,33979.0,33959.0,4.6246]
[1609882280587,0.00374786,33979.0,33935.0,0.10044]
[1609882280787,0.00374786,33979.0,33967.0,0.13632608]
[1609882281690,0.13261,33980.0,33967.0,0.13632608]
[1609882282190,0.31234902,33981.0,33967.0,0.13632608]
[1609882282390,0.31234902,33981.0,33969.0,4.5591]
[1609882282789,0.27659608,33970.0,33969.0,4.5591]
[1609882283590,0.27659608,33970.0,33969.0,5.5591]
[1609882284292,0.27659608,33970.0,33969.0,1.0]
[1609882284492,0.27659608,33970.0,33969.0,5.2404]
[1609882285493,0.11269608,33970.0,33969.0,5.2404]
[1609882286093,0.12518,33977.0,33969.0,5.2404]
[1609882286795,0.12518,33977.0,33976.0,0.13632608]
[1609882286995,0.12518,33977.0,33976.0,4.17232608]
[1609882287495,0.00374951,33991.0,33976.0,4.17232608]
[1609882288696,0.00374951,33991.0,33988.0,0.13632608]
[1609882288896,0.00374916,33994.0,33988.0,0.13632608]
[1609882289095,0.00374916,33994.0,33988.0,0.70232608]
[1609882289595,0.00374916,33994.0,33993.0,1.0]
[1609882289996,0.00374916,33994.0,33993.0,5.9131]
[1609882290399,0.00374916,33994.0,33993.0,5.65398335]
[1609882290797,0.14007524,33994.0,33993.0,6.04942608]
[1609882291397,0.14007524,33994.0,33993.0,1.13632608]
[1609882291798,0.13632608,33994.0,33993.0,1.13632608]
[1609882292798,0.13632608,33994.0,33993.0,0.13632608]
[1609882293503,0.13632608,33994.0,33993.0,0.6393]
[1609882295005,0.27895608,33994.0,33993.0,0.6393]
[1609882298510,0.7664104,33994.0,33993.0,0.6393]
[1609882298908,0.7664104,33994.0,33990.0,0.13632608]
[1609882299508,0.7664104,33994.0,33991.0,0.5799]
[1609882300709,0.7664104,33994.0,33992.0,1.0]
[1609882302713,0.7664104,33994.0,33991.0,0.5799]
[1609882306213,0.7664104,33994.0,33950.0,2.01947061]
[1609882306415,0.7664104,33994.0,33977.0,3.4146]
[1609882306814,0.63008432,33994.0,33985.0,0.13632608]
[1609882308919,0.13632608,33986.0,33985.0,0.13632608]
[1609882309120,0.23356608,33986.0,33985.0,0.13632608]
[1609882309719,0.09724,33986.0,33985.0,0.13632608]
[1609882311422,0.09724,33986.0,33982.0,3.6633]
[1609882312422,0.09724,33986.0,33961.0,7.86]
[1609882312423,0.09724,33986.0,33927.0,1.0]
[1609882312624,0.09724,33986.0,33962.0,4.6386]
[1609882312825,1.0,33982.0,33967.0,0.13632608]
[1609882314828,0.13632608,33968.0,33967.0,0.13632608]
[1609882315026,0.26677608,33968.0,33967.0,0.13632608]
[1609882315929,0.26677608,33968.0,33962.0,4.6386]
[1609882316927,0.13632608,33963.0,33962.0,4.6386]
[1609882319430,0.13045,33968.0,33962.0,4.6386]
[1609882320034,0.2921,33973.0,33962.0,4.6386]
[1609882320735,0.2921,33973.0,33972.0,1.0]
[1609882320935,0.2921,33973.0,33972.0,1.13632608]
[1609882320936,0.42842608,33973.0,33972.0,1.13632608]
[1609882321137,0.42842608,33973.0,33972.0,4.55692608]
[1609882322636,0.13632608,33973.0,33972.0,4.55692608]
[1609882322836,0.13632608,33973.0,33972.0,3.55692608]
[1609882324036,0.09724,33986.0,33972.0,3.55692608]
[1609882324236,0.2989,33990.0,33972.0,3.55692608]
[1609882324836,0.2989,33990.0,33989.0,0.13632608]
[1609882326138,0.2989,33990.0,33988.0,4.6054]
[1609882326339,0.2989,33990.0,33987.0,1.0]
[1609882326740,0.2989,33990.0,33980.0,3.9816]
[1609882326945,0.13632608,33981.0,33980.0,3.9816]
[1609882327138,0.28520608,33981.0,33980.0,3.9816]
[1609882330341,0.14888,33981.0,33980.0,3.9816]
[1609882330743,0.14888,33981.0,33980.0,4.9816]
[1609882332243,0.13632608,33988.0,33980.0,4.9816]
[1609882332842,0.13632608,33988.0,33987.0,0.13632608]
[1609882333344,0.13632608,33988.0,33987.0,4.09072608]
[1609882334445,0.13632608,33988.0,33987.0,0.13632608]
[1609882334647,0.13632608,33988.0,33972.0,0.5]
[1609882334848,0.13632608,33973.0,33972.0,0.5]
[1609882335248,0.23136608,33973.0,33972.0,0.5]
[1609882340958,1.23136608,33973.0,33972.0,0.5]
[1609882344163,1.09504,33973.0,33972.0,0.5]
[1609882344564,1.09504,33973.0,33972.0,4.5089]
[1609882344762,0.09504,33973.0,33972.0,4.5089]
[1609882344962,0.13632608,33973.0,33972.0,4.64522608]
[1609882345163,0.23290608,33973.0,33972.0,4.5089]
[1609882345363,0.62125931,33973.0,33972.0,4.5089]
[1609882346465,0.62125931,33973.0,33972.0,0.5]
[1609882346765,0.62125931,33973.0,33972.0,1.5]
[1609882348769,1.62125931,33973.0,33972.0,0.5]
[1609882351774,1.63418595,33973.0,33972.0,0.5]
[1609882352775,0.63418595,33973.0,33972.0,0.5]
[1609882354677,0.62125931,33973.0,33972.0,0.5]
[1609882356878,1.62125931,33973.0,33972.0,0.5]
[1609882366784,0.62125931,33973.0,33972.0,0.5]
[1609882368786,1.62125931,33973.0,33972.0,0.5]
[1609882377797,1.62502877,33973.0,33972.0,0.5]
[1609882378798,0.62502877,33973.0,33972.0,0.5]
[1609882378999,0.63041376,33973.0,33972.0,0.20528669]
[1609882379498,0.63938629,33973.0,33972.0,0.20528669]
[1609882380100,2.13938629,33973.0,33972.0,0.20528669]
[1609882380300,0.63938629,33973.0,33972.0,0.03468669]
[1609882380501,1.15993156,33973.0,33972.0,0.03468669]
[1609882380900,7.15993156,33973.0,33972.0,0.03468669]
[1609882381301,7.24893156,33973.0,33972.0,0.03468669]
[1609882381501,8.74893156,33973.0,33952.0,4.2271]
[1609882382802,1.0,33953.0,33952.0,4.2271]
[1609882383002,1.0,33953.0,33933.0,2.03908138]
[1609882383203,0.13632608,33934.0,33933.0,2.03908138]
[1609882385505,0.10614,33944.0,33933.0,4.134]
[1609882386107,1.0,33948.0,33933.0,4.134]
[1609882386809,0.2759,33952.0,33947.0,1.0]
[1609882387009,0.2759,33952.0,33948.0,0.5262]
[1609882387211,0.2759,33952.0,33951.0,0.13632608]
[1609882387809,0.2759,33952.0,33951.0,4.4067]
[1609882389012,0.2759,33952.0,33935.0,0.09725]
[1609882389212,0.2759,33952.0,33951.0,0.13632608]
[1609882390613,0.2759,33952.0,33935.0,0.09725]
[1609882391015,0.2759,33952.0,33935.0,5.03315]
[1609882391215,0.13632608,33942.0,33941.0,0.13632608]
[1609882392416,0.13632608,33942.0,33941.0,4.70542608]
[1609882393519,0.12701,33946.0,33941.0,4.70542608]
[1609882393920,0.2759,33952.0,33941.0,4.70542608]
[1609882395220,0.2759,33952.0,33950.0,0.13632608]
[1609882395922,0.2759,33952.0,33950.0,0.82332608]
[1609882396722,0.2759,33952.0,33950.0,0.6245174]
[1609882397222,0.13632608,33951.0,33950.0,0.6245174]
[1609882398223,0.13632608,33951.0,33950.0,0.2258578]
[1609882398622,0.13632608,33951.0,33937.0,0.42108269]
[1609882399022,0.13632608,33951.0,33945.0,4.938]
[1609882399221,0.13632608,33946.0,33945.0,4.938]
[1609882400827,0.13632608,33946.0,33945.0,5.938]
[1609882404831,0.13632608,33946.0,33945.0,4.938]
[1609882406833,0.13632608,33946.0,33945.0,5.938]
[1609882410244,0.13632608,33946.0,33945.0,3.938]
[1609882410439,0.13632608,33946.0,33945.0,1.0]
[1609882410841,0.13632608,33946.0,33944.0,0.13632608]
[1609882411845,0.13632608,33946.0,33945.0,0.6713]
[1609882412850,0.13632608,33946.0,33945.0,1.6713]
[1609882414749,0.13632608,33946.0,33944.0,0.13632608]
[1609882414950,0.13632608,33946.0,33945.0,1.0]
[1609882415952,0.13632608,33946.0,33945.0,5.376]
[1609882425965,0.13632608,33946.0,33945.0,3.376]
[1609882429968,0.23662608,33946.0,33945.0,3.376]
[1609882430769,0.23662608,33946.0,33945.0,2.376]
[1609882432772,0.23662608,33946.0,33945.0,3.376]
[1609882439474,0.23662608,33946.0,33945.0,3.876]
[1609882440776,0.23662608,33946.0,33945.0,2.876]
[1609882441678,0.23662608,33946.0,33945.0,0.5]
[1609882442577,0.23662608,33946.0,33937.0,0.7206064]
[1609882442977,0.23662608,33946.0,33945.0,1.0]
[1609882448886,0.23662608,33946.0,33942.0,1.0]
[1609882450788,0.23662608,33946.0,33939.0,3.8791]
[1609882451088,0.23662608,33946.0,33936.0,1.0]
[1609882451589,0.13632608,33937.0,33936.0,1.0]
[1609882452792,0.13632608,33937.0,33934.0,1.0]
[1609882453391,0.13632608,33937.0,33926.0,1.39714357]
[1609882453592,4.9043,33945.0,33929.0,0.13632608]
[1609882453792,0.1176,33937.0,33933.0,1.0]
[1609882455194,0.1176,33937.0,33933.0,4.957]
[1609882455592,0.13632608,33934.0,33933.0,4.957]
[1609882455792,0.13632608,33934.0,33933.0,2.957]
[1609882456094,0.13632608,33934.0,33933.0,1.0]
[1609882459698,0.13632608,33934.0,33933.0,1.13632608]
[1609882465104,0.13632608,33934.0,33933.0,1.72902608]
[1609882467808,0.13632608,33934.0,33933.0,0.72902608]
[1609882469712,0.13632608,33934.0,33933.0,1.72902608]
[1609882470211,0.13632608,33934.0,33933.0,1.13632608]
[1609882470713,0.13632608,33934.0,33933.0,1.0]
[1609882473718,0.13632608,33934.0,33933.0,1.13632608]
[1609882475723,0.13632608,33934.0,33933.0,0.13632608]
[1609882475922,0.13632608,33934.0,33933.0,5.01402608]
[1609882477023,0.13632608,33934.0,33933.0,0.13632608]
[1609882477824,0.13632608,33934.0,33933.0,1.13632608]
[1609882482930,0.13632608,33934.0,33922.0,2.1122855]
[1609882483129,4.2511,33930.0,33922.0,2.1122855]
[1609882483729,4.2511,33930.0,33928.0,0.13632608]
[1609882484330,4.2511,33930.0,33922.0,2.1122855]
[1609882485231,4.2511,33930.0,33927.0,1.0]
[1609882485631,0.09823,33939.0,33927.0,1.0]
[1609882485831,0.13632608,33928.0,33927.0,1.0]
[1609882487234,0.13632608,33928.0,33924.0,1.0]
[1609882490841,0.13632608,33928.0,33924.0,5.143]
[1609882491339,0.13632608,33928.0,33927.0,1.0]
[1609882503262,0.13632608,33928.0,33924.0,1.0]
[1609882503463,4.5319,33925.0,33924.0,1.0]
[1609882505362,5.5319,33925.0,33908.0,2.13076814]
[1609882505563,1.0,33925.0,33908.0,2.13076814]
[1609882505763,4.0081,33909.0,33908.0,2.13076814]
[1609882505964,4.14442608,33909.0,33908.0,2.13076814]
[1609882506163,4.26527608,33909.0,33908.0,2.13076814]
[1609882506367,0.25717608,33909.0,33904.0,2.12858072]
[1609882506964,0.93957608,33909.0,33904.0,2.12858072]
[1609882507163,0.25717608,33909.0,33904.0,2.12858072]
[1609882507364,5.093,33905.0,33904.0,2.12858072]
[1609882507765,5.093,33905.0,33895.0,2.1350976]
[1609882507964,0.13632608,33896.0,33895.0,2.1350976]
[1609882508164,3.83389608,33896.0,33895.0,2.1350976]
[1609882513067,3.83389608,33896.0,33892.0,2.13920939]
[1609882513869,3.83389608,33896.0,33867.0,2.13161743]
[1609882514668,0.25999608,33896.0,33867.0,2.13161743]
[1609882514868,4.4534,33871.0,33867.0,2.13161743]
[1609882515870,0.13632608,33868.0,33867.0,2.13161743]
[1609882517175,0.12952,33878.0,33867.0,2.13161743]
[1609882517576,0.12952,33878.0,33875.0,4.4713]
[1609882517977,0.12952,33878.0,33877.0,0.13632608]
[1609882520082,0.13632608,33886.0,33877.0,0.13632608]
[1609882521283,0.13632608,33886.0,33879.0,1.0]
[1609882521885,0.13632608,33880.0,33879.0,1.0]
[1609882522587,0.13632608,33880.0,33879.0,0.62353487]
[1609882522886,0.13632608,33880.0,33878.0,1.0]
[1609882523086,0.28377608,33880.0,33878.0,1.0]
[1609882524589,0.13632608,33880.0,33878.0,1.0]
[1609882524990,0.13632608,33880.0,33877.0,0.13632608]
[1609882526093,0.12367,33896.0,33877.0,0.13632608]
[1609882526493,3.573,33898.0,33877.0,0.26636608]
[1609882526694,0.00373833,33922.0,33877.0,0.26636608]
[1609882526894,1.12085,33909.0,33892.0,1.0]
[1609882527096,1.12085,33909.0,33892.0,1.5221]
[1609882528097,0.24850608,33893.0,33892.0,1.5221]
[1609882528296,0.24850608,33893.0,33892.0,1.0]
[1609882528996,0.24850608,33893.0,33878.0,0.1771]
[1609882528997,1.24850608,33893.0,33878.0,0.1771]
[1609882529197,1.24850608,33893.0,33867.0,1.0]
[1609882529198,3.3289,33892.0,33867.0,1.0]
[1609882529601,3.616,33892.0,33867.0,1.0]
[1609882530001,0.13632608,33868.0,33867.0,1.0]
[1609882530801,4.69582608,33868.0,33867.0,1.0]
[1609882531002,4.69582608,33868.0,33864.0,2.11826498]
[1609882531702,0.13632608,33868.0,33864.0,2.11826498]
[1609882532904,0.13632608,33868.0,33858.0,0.45260029]
[1609882533104,0.13632608,33868.0,33856.0,1.0]
[1609882533305,3.9537,33865.0,33856.0,1.0]
[1609882534003,0.13632608,33857.0,33856.0,1.0]
[1609882534904,0.13632608,33857.0,33854.0,0.1771]
[1609882535107,3.96682608,33857.0,33854.0,0.1771]
[1609882536408,3.96682608,33857.0,33848.0,0.13632608]
[1609882538010,0.13632608,33849.0,33848.0,0.13632608]
[1609882538310,0.25632608,33849.0,33848.0,0.13632608]
[1609882541317,0.25632608,33849.0,33844.0,1.0]
[1609882541917,3.3421,33846.0,33844.0,1.0]
[1609882542118,0.13632608,33845.0,33844.0,1.0]
[1609882542918,0.13632608,33845.0,33840.0,0.13632608]
[1609882544119,0.13632608,33841.0,33840.0,0.13632608]
[1609882544921,4.57162608,33841.0,33840.0,0.13632608]
[1609882545821,0.13632608,33841.0,33840.0,0.13632608]
[1609882546022,0.12,33849.0,33840.0,0.13632608]
[1609882546220,4.3807,33872.0,33840.0,4.19672608]
[1609882546620,0.29,33876.0,33840.0,0.13632608]
[1609882547022,0.29,33876.0,33862.0,1.0]
[1609882548023,0.13632608,33863.0,33862.0,1.0]
[1609882548423,0.26528608,33863.0,33862.0,1.0]
[1609882551023,0.26528608,33863.0,33855.0,1.0]
[1609882552227,0.13632608,33856.0,33855.0,1.0]
[1609882552827,0.25373608,33856.0,33855.0,1.0]
[1609882553028,0.25373608,33856.0,33849.0,0.1771]
[1609882554129,0.13632608,33850.0,33849.0,0.1771]
[1609882554832,0.13632608,33850.0,33846.0,1.13632608]
[1609882555733,0.13632608,33850.0,33846.0,1.0]
[1609882556840,0.13632608,33850.0,33841.0,0.13632608]
[1609882557040,0.13632608,33850.0,33844.0,1.0]
[1609882558237,0.13632608,33845.0,33844.0,1.0]
[1609882558839,0.13632608,33845.0,33841.0,0.13632608]
[1609882559040,0.13632608,33845.0,33844.0,1.0]
[1609882560341,5.02412608,33845.0,33844.0,1.0]
[1609882561441,0.13632608,33845.0,33844.0,1.0]
[1609882562142,0.13632608,33845.0,33844.0,4.5778]
[1609882563243,0.13632608,33845.0,33844.0,1.0]
[1609882564945,0.71352608,33845.0,33836.0,0.1771]
[1609882565145,0.71352608,33845.0,33834.0,0.14394]
[1609882565645,0.71352608,33845.0,33827.0,2.12473337]
[1609882566247,0.13632608,33828.0,33827.0,2.26105945]
[1609882566947,0.13632608,33828.0,33827.0,2.12473337]
[1609882567547,0.13632608,33828.0,33825.0,3.13560946]
[1609882568150,4.1,33826.0,33825.0,1.0]
[1609882570152,0.13632608,33828.0,33825.0,1.13632608]
[1609882570853,0.13632608,33828.0,33825.0,0.13632608]
[1609882576061,0.10524,33834.0,33825.0,0.13632608]
[1609882576262,0.13632608,33826.0,33825.0,0.13632608]
[1609882576866,0.12891,33833.0,33825.0,0.13632608]
[1609882578363,0.12891,33833.0,33832.0,0.13632608]
[1609882578965,0.12891,33833.0,33832.0,1.13632608]
[1609882580069,4.28921,33833.0,33832.0,1.0]
[1609882580267,4.42553608,33833.0,33832.0,1.0]
[1609882580467,0.26523608,33833.0,33832.0,1.0]
[1609882580669,0.12891,33833.0,33832.0,1.0]
[1609882580869,0.12891,33833.0,33825.0,0.13632608]
[1609882581769,0.11771,33842.0,33825.0,0.13632608]
[1609882582169,0.12916,33849.0,33825.0,0.13632608]
[1609882582368,0.12916,33849.0,33835.0,0.13632608]
[1609882582870,1.0,33848.0,33835.0,0.13632608]
[1609882583770,1.0,33848.0,33831.0,1.0]
[1609882583970,4.4712,33836.0,33831.0,1.0]
[1609882584372,0.13632608,33832.0,33831.0,1.0]
[1609882584972,0.13632608,33832.0,33827.0,0.13632608]
[1609882586374,0.13632608,33828.0,33827.0,0.13632608]
[1609882586975,0.82142608,33828.0,33820.0,0.1771]
[1609882588376,0.13632608,33828.0,33827.0,0.13632608]
[1609882588876,0.14187,33830.0,33828.0,1.0]
[1609882590279,0.13632608,33829.0,33828.0,1.0]
[1609882590879,0.13632608,33829.0,33827.0,0.13632608]
[1609882591683,0.14187,33830.0,33827.0,0.13632608]
[1609882592086,1.0,33837.0,33827.0,0.13632608]
[1609882592284,1.0,33837.0,33833.0,0.13632608]
[1609882592885,0.13258,33838.0,33833.0,0.13632608]
[1609882593086,0.1007451,33845.0,33833.0,0.13632608]
[1609882593285,4.1043,33835.0,33833.0,0.13632608]
[1609882593486,4.1043,33835.0,33824.0,2.14883022]
[1609882593888,4.1043,33835.0,33821.0,2.15074235]
[1609882594488,4.1043,33835.0,33830.0,0.13632608]
[1609882594687,0.0942,33835.0,33830.0,0.13632608]
[1609882596290,0.0942,33835.0,33834.0,0.13632608]
[1609882596789,0.0942,33835.0,33829.0,1.0]
[1609882596990,0.0942,33835.0,33821.0,2.15074235]
[1609882598092,3.9689,33828.0,33821.0,2.15074235]
[1609882598293,3.9689,33828.0,33822.0,0.13632608]
[1609882598994,0.1007451,33845.0,33822.0,0.13632608]
[1609882599194,4.8357,33840.0,33822.0,0.13632608]
[1609882599394,4.94504,33840.0,33822.0,0.13632608]
[1609882600398,0.10934,33840.0,33832.0,0.13632608]
[1609882600997,0.10934,33840.0,33836.0,1.0]
[1609882602400,0.10934,33840.0,33837.0,0.13632608]
[1609882602802,0.10934,33840.0,33836.0,1.0]
[1609882603003,0.10934,33840.0,33825.0,1.0]
[1609882603201,0.10934,33840.0,33829.0,4.7286]
[1609882604303,0.13632608,33830.0,33829.0,4.7286]
[1609882604504,0.23716608,33830.0,33827.0,0.13632608]
[1609882608106,0.10084,33830.0,33827.0,0.13632608]
[1609882609714,0.1007451,33845.0,33827.0,0.13632608]
[1609882610512,0.23707118,33845.0,33844.0,0.13632608]
[1609882611413,0.1007451,33845.0,33844.0,0.13632608]
[1609882611612,1.00376773,33860.0,33844.0,0.13632608]
[1609882612411,1.00376773,33860.0,33859.0,0.13632608]
[1609882612811,1.00376773,33860.0,33859.0,0.68392608]
[1609882613012,0.00376773,33860.0,33859.0,1.68392608]
[1609882613212,0.14010439,33870.0,33859.0,1.68392608]
[1609882613813,0.13632608,33870.0,33859.0,1.68392608]
[1609882614214,0.13632608,33870.0,33859.0,1.13632608]
[1609882614414,0.13632608,33870.0,33869.0,0.13632608]
[1609882614614,0.00378189,33882.0,33869.0,0.13632608]
[1609882614815,0.4432818,33879.0,33869.0,0.13632608]
[1609882615013,0.4432818,33879.0,33869.0,1.13632608]
[1609882615713,0.4432818,33879.0,33869.0,1.28236608]
[1609882615915,0.4432818,33879.0,33869.0,1.12984311]
[1609882616114,0.4432818,33879.0,33875.0,1.0]
[1609882616514,0.57960788,33879.0,33878.0,0.13632608]
[1609882616915,0.13632608,33879.0,33878.0,0.13632608]
[1609882617717,0.13632608,33879.0,33875.0,1.0]
[1609882618117,0.13632608,33879.0,33862.0,0.12871]
[1609882618318,0.13632608,33879.0,33865.0,1.0]
[1609882618520,1.0,33882.0,33872.0,0.13632608]
[1609882619019,1.0,33882.0,33872.0,4.99632608]
[1609882619220,1.0,33882.0,33872.0,4.86]
[1609882619819,1.0,33882.0,33865.0,1.0]
[1609882620221,1.0,33874.0,33858.0,3.5084]
[1609882620422,0.13632608,33859.0,33857.0,1.0]
[1609882622124,0.13632608,33859.0,33847.0,0.13158]
[1609882622325,0.26937608,33859.0,33844.0,5.48]
[1609882622524,0.13632608,33845.0,33844.0,5.61632608]
[1609882622724,0.13632608,33845.0,33844.0,1.13632608]
[1609882623324,0.13632608,33845.0,33844.0,1.0]
[1609882624124,0.13632608,33845.0,33840.0,3.4688]
[1609882624526,0.13632608,33841.0,33840.0,3.4688]
[1609882625828,0.13632608,33841.0,33836.0,0.13632608]
[1609882626829,0.1176,33851.0,33836.0,0.13632608]
[1609882627228,0.1176,33851.0,33836.0,0.27036608]
[1609882627431,0.13305,33859.0,33836.0,0.27036608]
[1609882627831,0.00376812,33866.0,33845.0,4.3931]
[1609882628231,0.00376812,33866.0,33845.0,4.53201]
[1609882628633,0.2781,33869.0,33865.0,0.13632608]
[1609882630236,0.2781,33869.0,33868.0,1.0]
[1609882632238,1.42531,33869.0,33854.0,2.12335333]
[1609882632638,1.42531,33869.0,33855.0,0.13632608]
[1609882632839,1.42531,33869.0,33849.0,1.0]
[1609882634241,0.42531,33869.0,33854.0,1.0]
[1609882634541,0.42531,33869.0,33859.0,0.13632608]
[1609882636242,0.42531,33869.0,33858.0,4.0274]
[1609882636445,0.42531,33869.0,33843.0,0.11574]
[1609882636644,0.13632608,33859.0,33854.0,0.13632608]
[1609882636843,0.23873608,33859.0,33854.0,0.13632608]
[1609882637845,0.23873608,33859.0,33843.0,0.11574]
[1609882638246,0.23873608,33859.0,33849.0,1.0]
[1609882638647,0.13632608,33850.0,33849.0,1.0]
[1609882640650,0.10241,33859.0,33849.0,1.13632608]
[1609882641050,0.42531,33869.0,33849.0,1.13632608]
[1609882642252,0.42531,33869.0,33854.0,1.0]
[1609882642651,0.42531,33869.0,33857.0,0.13632608]
[1609882644254,1.42531,33869.0,33857.0,0.13632608]
[1609882644553,0.13632608,33858.0,33857.0,0.13632608]
[1609882644958,0.24744608,33858.0,33857.0,0.13632608]
[1609882647554,0.24744608,33858.0,33853.0,0.1771]
[1609882648654,0.13632608,33854.0,33853.0,0.1771]
[1609882649055,0.13632608,33854.0,33848.0,4.5598]
[1609882649256,0.11112,33858.0,33847.0,0.13632608]
[1609882649455,0.11112,33858.0,33853.0,3.9959]
[1609882649957,1.0,33863.0,33853.0,3.9959]
[1609882650158,0.42531,33869.0,33853.0,3.9959]
[1609882650758,0.42531,33869.0,33868.0,0.13632608]
[1609882651959,0.42531,33869.0,33853.0,3.9959]
[1609882652159,0.42531,33869.0,33861.0,1.0]
[1609882652660,0.42531,33869.0,33864.0,0.13632608]
[1609882653761,0.42531,33869.0,33868.0,0.5445]